fUST/lending_fUST_20250423
["ID","MTS","AMOUNT","RATE_DAILY","PERIOD"]
[358651715,1745337799661,250.0,0.00020006,2]
[358651721,1745338199268,295.79295339,0.000189,2]
[358651735,1745338232580,-408.62024876,0.00020781,2]
[358651743,1745338232662,-821.36513349,0.00020781,2]
[358651745,1745338232672,-5000.0,0.000208,2]
[358651747,1745338232687,-600.0,0.00020879,2]
[358651749,1745338232698,-300.0,0.0002088,2]
[358651751,1745338232707,-300.0,0.0002088,2]
[358651753,1745338232718,-1000.0,0.00020881,2]
[358651755,1745338232729,-637.71083012,0.00020881,2]
[358651757,1745338232741,-18175.0090943,0.0002089,2]
[358651759,1745338232751,-310.3907,0.00020914,2]
[358651761,1745338232762,-198.3248875,0.00021024,2]
[358651763,1745338232771,-1525.1836475,0.00021082,2]
[358651764,1745338232783,-250.0,0.00021817,2]
[358651765,1745338232793,-1561.87183307,0.00021817,2]
[358651766,1745338232804,-171.56904505,0.00021917,2]
[358651767,1745338232814,-500.0,0.00021917,2]
[358651768,1745338232824,-500.0,0.00021917,2]
[358651769,1745338232835,-500.0,0.00021917,2]
[358651770,1745338232845,-500.0,0.00021917,2]
[358651771,1745338232856,-500.0,0.00021917,2]
[358651772,1745338232869,-500.0,0.00021917,2]
[358651773,1745338232879,-500.0,0.00021917,2]
[358651774,1745338232890,-500.0,0.00021917,2]
[358651775,1745338232900,-500.0,0.00021917,2]
[358651776,1745338232910,-500.0,0.00021917,2]
[358651777,1745338232919,-500.0,0.00021917,2]
[358651778,1745338232929,-500.0,0.00021917,2]
[358651779,1745338232939,-500.0,0.00021917,2]
[358651780,1745338232951,-500.0,0.00021917,2]
[358651781,1745338232963,-500.0,0.00021917,2]
[358651782,1745338232973,-500.0,0.00021917,2]
[358651783,1745338232983,-500.0,0.00021917,2]
[358651784,1745338232993,-500.0,0.00021917,2]
[358651785,1745338233003,-500.0,0.00021917,2]
[358651786,1745338233012,-649.53,0.00021917,2]
[358651787,1745338233022,-500.0,0.00021917,2]
[358651788,1745338233033,-500.0,0.00021917,2]
[358651789,1745338233042,-500.0,0.00021917,2]
[358651790,1745338233052,-1669.86,0.00021917,2]
[358651791,1745338233062,-500.0,0.00021917,2]
[358651792,1745338233072,-500.0,0.00021917,2]
[358651793,1745338233082,-500.0,0.00021917,2]
[358651794,1745338233091,-500.0,0.00021917,2]
[358651795,1745338233101,-500.0,0.00021917,2]
[358651796,1745338233111,-4082.69,0.00021917,2]
[358651797,1745338233123,-500.0,0.00021917,2]
[358651798,1745338233138,-605.86638227,0.00021917,2]
[358651799,1745338233153,-500.0,0.00021917,2]
[358651800,1745338233167,-1206.18,0.00021917,2]
[358651801,1745338233182,-500.0,0.00021917,2]
[358651802,1745338233195,-914.84,0.00021917,2]
[358651803,1745338233209,-500.0,0.00021917,2]
[358651804,1745338233222,-500.0,0.00021917,2]
[358651805,1745338233234,-500.0,0.00021917,2]
[358651806,1745338233245,-2204.13,0.00021917,2]
[358651807,1745338233256,-500.0,0.00021917,2]
[358651808,1745338233269,-587.68,0.00021917,2]
[358651809,1745338233281,-500.0,0.00021917,2]
[358651810,1745338233296,-500.0,0.00021917,2]
[358651811,1745338233310,-500.0,0.00021917,2]
[358651812,1745338233322,-795.22,0.00021917,2]
[358651813,1745338233335,-500.0,0.00021917,2]
[358651814,1745338233347,-500.0,0.00021917,2]
[358651815,1745338233360,-500.0,0.00021917,2]
[358651816,1745338233375,-500.0,0.00021917,2]
[358651817,1745338233388,-500.0,0.00021917,2]
[358651818,1745338233401,-500.0,0.00021917,2]
[358651819,1745338233414,-1584.84,0.00021917,2]
[358651820,1745338233427,-500.0,0.00021917,2]
[358651821,1745338233440,-1090.99,0.00021917,2]
[358651822,1745338233453,-192.057029,0.00021918,2]
[358651823,1745338233465,-241.0,0.00022,2]
[358651824,1745338233476,-554.34,0.00022069,3]
[358651825,1745338233489,-277.17,0.00022069,3]
[358651826,1745338233503,-831.51,0.00022069,3]
[358651827,1745338233516,-507.68983846,0.00022073,2]
[358651828,1745338233528,-500.0,0.00022073,2]
[358651829,1745338233539,-500.0,0.00022073,2]
[358651830,1745338233552,-500.0,0.00022073,2]
[358651831,1745338233565,-500.0,0.00022073,2]
[358651832,1745338233577,-259.47357438,0.00022073,2]
[358651833,1745338233590,-500.0,0.00022073,2]
[358651834,1745338233602,-500.0,0.00022073,2]
[358651835,1745338233617,-500.0,0.00022073,2]
[358651836,1745338233631,-500.0,0.00022073,2]
[358651837,1745338233643,-500.0,0.00022073,2]
[358651838,1745338233655,-177.92986561,0.00022073,2]
[358651839,1745338233667,-500.0,0.00022073,2]
[358651840,1745338233681,-505.18792042,0.00022073,2]
[358651841,1745338233694,-500.73159819,0.00022073,2]
[358651842,1745338233706,-481.25447053,0.00022073,2]
[358651843,1745338233719,-300.0,0.00022073,2]
[358651844,1745338233734,-500.0,0.00022078,2]
[358651845,1745338233747,-1368.10710904,0.00022078,2]
[358651846,1745338233760,-460.45332089,0.00022078,2]
[358651847,1745338233777,-500.0,0.00022078,2]
[358651848,1745338233789,-487.59739964,0.00022078,2]
[358651849,1745338233803,-1368.10710904,0.00022078,2]
[358651850,1745338233817,-446.2937799,0.00022078,2]
[358651851,1745338233829,-1368.10710904,0.00022078,2]
[358651852,1745338233842,-500.0,0.00022078,2]
[358651853,1745338233856,-1368.10710904,0.00022078,2]
[358651854,1745338233871,-1368.10710904,0.00022078,2]
[358651855,1745338233884,-1368.10710904,0.00022078,2]
[358651856,1745338233895,-1368.10710904,0.00022078,2]
[358651857,1745338233906,-1368.10710904,0.00022078,2]
[358651858,1745338233917,-1368.10710904,0.00022078,2]
[358651859,1745338233928,-1368.10710904,0.00022078,2]
[358651860,1745338233939,-1368.10710904,0.00022078,2]
[358651861,1745338233951,-1368.10710904,0.00022078,2]
[358651862,1745338233963,-1368.10710904,0.00022078,2]
[358651863,1745338233976,-1368.10710904,0.00022078,2]
[358651864,1745338233993,-1368.10710904,0.00022078,2]
[358651865,1745338234006,-1368.10710904,0.00022078,2]
[358651866,1745338234020,-1368.10710904,0.00022078,2]
[358651867,1745338234032,-1368.10710904,0.00022078,2]
[358651868,1745338234043,-1368.10710904,0.00022078,2]
[358651869,1745338234054,-1368.10710904,0.00022078,2]
[358651870,1745338234066,-1368.10710904,0.00022078,2]
[358651871,1745338234078,-1368.10710904,0.00022078,2]
[358651872,1745338234090,-1368.10710904,0.00022078,2]
[358651873,1745338234104,-1368.10710904,0.00022078,2]
[358651874,1745338234118,-1368.10710904,0.00022078,2]
[358651875,1745338234131,-1368.10710904,0.00022078,2]
[358651876,1745338234142,-1368.10710904,0.00022078,2]
[358651877,1745338234153,-1368.10710904,0.00022078,2]
[358651878,1745338234165,-1368.10710904,0.00022078,2]
[358651879,1745338234176,-1368.10710904,0.00022078,2]
[358651880,1745338234187,-1368.10710904,0.00022078,2]
[358651881,1745338234198,-1368.10710904,0.00022078,2]
[358651882,1745338234210,-1368.10710904,0.00022078,2]
[358651883,1745338234221,-1368.10710904,0.00022078,2]
[358651884,1745338234232,-1368.10710904,0.00022078,2]
[358651885,1745338234244,-1368.10710904,0.00022078,2]
[358651886,1745338234256,-1368.10710904,0.00022078,2]
[358651887,1745338234270,-1368.10710904,0.00022078,2]
[358651888,1745338234283,-7556.01739472,0.00022078,2]
[358651889,1745338234295,-7556.01739472,0.00022078,2]
[358651890,1745338234308,-7556.01739472,0.00022078,2]
[358651891,1745338234320,-7556.01739472,0.00022078,2]
[358651892,1745338234331,-7556.01739472,0.00022078,2]
[358651893,1745338234343,-7556.01739472,0.00022078,2]
[358651894,1745338234355,-7556.01739472,0.00022078,2]
[358651895,1745338234369,-7556.01739472,0.00022078,2]
[358651896,1745338234381,-3594.35500498,0.00022078,2]
[358651907,1745338239304,-500.0,0.00021917,2]
[358651908,1745338239314,-211.0,0.00022,2]
[358651909,1745338239324,-217.40887644,0.00022077,2]
[358651910,1745338239334,-615.0,0.00022077,2]
[358651911,1745338239344,-598.15133092,0.00022077,2]
[358651912,1745338239354,-500.0,0.00022077,2]
[358651913,1745338239363,-236777.32661376,0.00022082,2]
[358651914,1745338239377,-133222.67338624,0.00022082,2]
[358651915,1745338239386,-500.0,0.00022191,2]
[358651916,1745338239396,-384.33103551,0.00022191,2]
[358651917,1745338239407,-500.0,0.00022191,2]
[358651918,1745338239417,-500.0,0.00022191,2]
[358651919,1745338239427,-500.0,0.00022191,2]
[358651920,1745338239437,-500.0,0.00022191,2]
[358651921,1745338239447,-500.0,0.00022191,2]
[358651922,1745338239457,-500.0,0.00022191,2]
[358651923,1745338239467,-500.0,0.00022191,2]
[358651924,1745338239477,-500.0,0.00022191,2]
[358651925,1745338239487,-500.0,0.00022191,2]
[358651926,1745338239497,-500.0,0.00022191,2]
[358651927,1745338239507,-500.0,0.00022191,2]
[358651928,1745338239516,-500.0,0.00022191,2]
[358651929,1745338239526,-180.19273463,0.00022191,2]
[358651930,1745338239536,-649.53,0.00022191,2]
[358651931,1745338239546,-500.0,0.00022191,2]
[358651932,1745338239555,-500.0,0.00022191,2]
[358651933,1745338239566,-500.0,0.00022191,2]
[358651934,1745338239576,-1669.86,0.00022191,2]
[358651935,1745338239585,-500.0,0.00022191,2]
[358651936,1745338239595,-500.0,0.00022191,2]
[358651937,1745338239604,-315.37134475,0.00022191,2]
[358651938,1745338239615,-500.0,0.00022191,2]
[358651939,1745338239626,-4082.69,0.00022191,2]
[358651940,1745338239637,-500.0,0.00022191,2]
[358651941,1745338239646,-500.0,0.00022191,2]
[358651942,1745338239656,-1206.18,0.00022191,2]
[358651943,1745338239666,-500.0,0.00022191,2]
[358651944,1745338239675,-914.84,0.00022191,2]
[358651945,1745338239685,-500.0,0.00022191,2]
[358651946,1745338239695,-500.0,0.00022191,2]
[358651947,1745338239705,-2204.13,0.00022191,2]
[358651948,1745338239714,-500.0,0.00022191,2]
[358651949,1745338239725,-587.68,0.00022191,2]
[358651950,1745338239739,-500.0,0.00022191,2]
[358651951,1745338239748,-500.0,0.00022191,2]
[358651952,1745338239759,-795.22,0.00022191,2]
[358651953,1745338239770,-500.0,0.00022191,2]
[358651954,1745338239780,-500.0,0.00022191,2]
[358651955,1745338239790,-500.0,0.00022191,2]
[358651956,1745338239799,-500.0,0.00022191,2]
[358651957,1745338239810,-500.0,0.00022191,2]
[358651958,1745338239820,-500.0,0.00022191,2]
[358651959,1745338239830,-1584.84,0.00022191,2]
[358651960,1745338239840,-500.0,0.00022191,2]
[358651961,1745338239850,-1090.99,0.00022191,2]
[358651962,1745338239860,-211.0,0.00022192,2]
[358651963,1745338239870,-160.0,0.00022385,2]
[358651964,1745338239880,-420.73667954,0.00022385,2]
[358651965,1745338239891,-160.0,0.00022385,2]
[358651966,1745338239901,-729.16666667,0.00022385,2]
[358651967,1745338239910,-160.0,0.00022385,2]
[358651968,1745338239920,-500.0,0.00022465,2]
[358651969,1745338239930,-500.0,0.00022465,2]
[358651970,1745338239939,-500.0,0.00022465,2]
[358651971,1745338239949,-500.0,0.00022465,2]
[358651972,1745338239959,-500.0,0.00022465,2]
[358651973,1745338239969,-500.0,0.00022465,2]
[358651974,1745338239980,-500.0,0.00022465,2]
[358651975,1745338239990,-500.0,0.00022465,2]
[358651976,1745338240001,-500.0,0.00022465,2]
[358651977,1745338240010,-500.0,0.00022465,2]
[358651978,1745338240020,-500.0,0.00022465,2]
[358651979,1745338240030,-500.0,0.00022465,2]
[358651980,1745338240040,-649.53,0.00022465,2]
[358651981,1745338240050,-500.0,0.00022465,2]
[358651982,1745338240060,-500.0,0.00022465,2]
[358651983,1745338240071,-551.41109219,0.00022465,2]
[358651984,1745338240081,-1669.86,0.00022465,2]
[358651985,1745338240091,-500.0,0.00022465,2]
[358651986,1745338240101,-500.0,0.00022465,2]
[358651987,1745338240111,-4082.69,0.00022465,2]
[358651988,1745338240121,-500.0,0.00022465,2]
[358651989,1745338240131,-500.0,0.00022465,2]
[358651990,1745338240141,-1206.18,0.00022465,2]
[358651991,1745338240150,-500.0,0.00022465,2]
[358651992,1745338240160,-914.84,0.00022465,2]
[358651993,1745338240170,-500.0,0.00022465,2]
[358651994,1745338240180,-500.0,0.00022465,2]
[358651995,1745338240189,-2204.13,0.00022465,2]
[358651996,1745338240199,-500.0,0.00022465,2]
[358651997,1745338240209,-587.68,0.00022465,2]
[358651998,1745338240218,-500.0,0.00022465,2]
[358651999,1745338240228,-795.22,0.00022465,2]
[358652000,1745338240238,-500.0,0.00022465,2]
[358652001,1745338240248,-182.55560108,0.00022465,2]
[358652002,1745338240258,-500.0,0.00022465,2]
[358652003,1745338240267,-500.0,0.00022465,2]
[358652004,1745338240277,-500.0,0.00022465,2]
[358652005,1745338240287,-500.0,0.00022465,2]
[358652006,1745338240297,-1584.84,0.00022465,2]
[358652007,1745338240306,-500.0,0.00022465,2]
[358652008,1745338240317,-1090.99,0.00022465,2]
[358652009,1745338240326,-420.0,0.00022715,2]
[358652010,1745338240337,-420.0,0.00022715,2]
[358652011,1745338240346,-500.0,0.00022739,2]
[358652012,1745338240356,-500.0,0.00022739,2]
[358652013,1745338240366,-390.72939004,0.00022739,2]
[358652014,1745338240376,-500.0,0.00022739,2]
[358652015,1745338240386,-500.0,0.00022739,2]
[358652016,1745338240395,-500.0,0.00022739,2]
[358652017,1745338240405,-500.0,0.00022739,2]
[358652018,1745338240415,-500.0,0.00022739,2]
[358652019,1745338240425,-174.49282231,0.00022739,2]
[358652020,1745338240434,-500.0,0.00022739,2]
[358652021,1745338240444,-500.0,0.00022739,2]
[358652022,1745338240455,-500.0,0.00022739,2]
[358652023,1745338240465,-649.53,0.00022739,2]
[358652024,1745338240476,-500.0,0.00022739,2]
[358652025,1745338240486,-1669.86,0.00022739,2]
[358652026,1745338240496,-500.0,0.00022739,2]
[358652027,1745338240506,-500.0,0.00022739,2]
[358652028,1745338240516,-4082.69,0.00022739,2]
[358652029,1745338240527,-500.0,0.00022739,2]
[358652030,1745338240538,-304.07843853,0.00022739,2]
[358652031,1745338240548,-1206.18,0.00022739,2]
[358652032,1745338240558,-500.0,0.00022739,2]
[358652033,1745338240568,-914.84,0.00022739,2]
[358652034,1745338240578,-500.0,0.00022739,2]
[358652035,1745338240588,-500.0,0.00022739,2]
[358652036,1745338240598,-2204.13,0.00022739,2]
[358652038,1745338240608,-500.0,0.00022739,2]
[358652040,1745338240618,-587.68,0.00022739,2]
[358652042,1745338240629,-446.37446683,0.00022739,2]
[358652044,1745338240639,-795.22,0.00022739,2]
[358652046,1745338240649,-500.0,0.00022739,2]
[358652048,1745338240658,-500.0,0.00022739,2]
[358652050,1745338240669,-500.0,0.00022739,2]
[358652052,1745338240678,-500.0,0.00022739,2]
[358652054,1745338240688,-500.0,0.00022739,2]
[358652056,1745338240698,-1584.84,0.00022739,2]
[358652058,1745338240708,-500.0,0.00022739,2]
[358652060,1745338240718,-1090.99,0.00022739,2]
[358652062,1745338240730,-263.13308955,0.00022997,2]
[358652064,1745338240740,-500.0,0.00023013,2]
[358652066,1745338240750,-500.0,0.00023013,2]
[358652068,1745338240760,-500.0,0.00023013,2]
[358652070,1745338240771,-500.0,0.00023013,2]
[358652072,1745338240781,-500.0,0.00023013,2]
[358652075,1745338240791,-500.0,0.00023013,2]
[358652077,1745338240802,-500.0,0.00023013,2]
[358652079,1745338240812,-500.0,0.00023013,2]
[358652080,1745338240821,-500.0,0.00023013,2]
[358652082,1745338240831,-500.0,0.00023013,2]
[358652085,1745338240841,-649.53,0.00023013,2]
[358652087,1745338240850,-500.0,0.00023013,2]
[358652089,1745338240861,-1669.86,0.00023013,2]
[358652091,1745338240874,-500.0,0.00023013,2]
[358652092,1745338240883,-500.0,0.00023013,2]
[358652094,1745338240893,-4082.69,0.00023013,2]
[358652095,1745338240903,-500.0,0.00023013,2]
[358652097,1745338240913,-1206.18,0.00023013,2]
[358652098,1745338240923,-500.0,0.00023013,2]
[358652099,1745338240933,-914.84,0.00023013,2]
[358652100,1745338240943,-500.0,0.00023013,2]
[358652101,1745338240953,-500.0,0.00023013,2]
[358652102,1745338240962,-2204.13,0.00023013,2]
[358652103,1745338240972,-500.0,0.00023013,2]
[358652104,1745338240982,-587.68,0.00023013,2]
[358652105,1745338240992,-795.22,0.00023013,2]
[358652106,1745338241002,-500.0,0.00023013,2]
[358652107,1745338241012,-500.0,0.00023013,2]
[358652108,1745338241022,-500.0,0.00023013,2]
[358652109,1745338241032,-500.0,0.00023013,2]
[358652110,1745338241042,-500.0,0.00023013,2]
[358652111,1745338241052,-1584.84,0.00023013,2]
[358652112,1745338241062,-500.0,0.00023013,2]
[358652113,1745338241071,-1090.99,0.00023013,2]
[358652114,1745338241081,-211.0,0.00023014,2]
[358652115,1745338241091,-403.0,0.00023092,2]
[358652116,1745338241102,-796.9748342,0.00023229,2]
[358652117,1745338241112,-500.0,0.00023265,2]
[358652118,1745338241122,-500.0,0.00023265,2]
[358652120,1745338241133,-500.0,0.00023265,2]
[358652121,1745338241143,-500.0,0.00023265,2]
[358652122,1745338241153,-500.0,0.00023265,2]
[358652123,1745338241163,-500.0,0.00023265,2]
[358652124,1745338241172,-382.76224991,0.00023265,2]
[358652125,1745338241182,-500.0,0.00023287,2]
[358652126,1745338241192,-500.0,0.00023287,2]
[358652128,1745338241202,-500.0,0.00023287,2]
[358652130,1745338241212,-500.0,0.00023287,2]
[358652131,1745338241222,-500.0,0.00023287,2]
[358652132,1745338241232,-500.0,0.00023287,2]
[358652133,1745338241243,-500.0,0.00023287,2]
[358652134,1745338241252,-500.0,0.00023287,2]
[358652135,1745338241262,-500.0,0.00023287,2]
[358652136,1745338241272,-286.69584436,0.00023287,2]
[358652137,1745338241282,-649.53,0.00023287,2]
[358652138,1745338241292,-500.0,0.00023287,2]
[358652139,1745338241302,-1669.86,0.00023287,2]
[358652140,1745338241312,-630.41977287,0.00023287,2]
[358652141,1745338241322,-500.0,0.00023287,2]
[358652142,1745338241332,-4082.69,0.00023287,2]
[358652143,1745338241341,-500.0,0.00023287,2]
[358652144,1745338241351,-1206.18,0.00023287,2]
[358652145,1745338241361,-500.0,0.00023287,2]
[358652146,1745338241371,-914.84,0.00023287,2]
[358652147,1745338241381,-500.0,0.00023287,2]
[358652148,1745338241391,-2204.13,0.00023287,2]
[358652149,1745338241400,-587.68,0.00023287,2]
[358652150,1745338241410,-795.22,0.00023287,2]
[358652151,1745338241421,-500.0,0.00023287,2]
[358652152,1745338241430,-500.0,0.00023287,2]
[358652153,1745338241440,-500.0,0.00023287,2]
[358652154,1745338241450,-500.0,0.00023287,2]
[358652155,1745338241460,-500.0,0.00023287,2]
[358652156,1745338241470,-1584.84,0.00023287,2]
[358652157,1745338241480,-500.0,0.00023287,2]
[358652158,1745338241490,-1090.99,0.00023287,2]
[358652159,1745338241500,-500.0,0.00023351,2]
[358652160,1745338241510,-1108.68,0.00023439,3]
[358652161,1745338241520,-554.34,0.00023439,3]
[358652162,1745338241530,-500.0,0.00023454,2]
[358652163,1745338241540,-500.0,0.00023454,2]
[358652164,1745338241550,-208.51997578,0.00023454,2]
[358652165,1745338241560,-501.04286608,0.00023454,2]
[358652166,1745338241570,-500.0,0.00023454,2]
[358652167,1745338241579,-500.0,0.00023488,2]
[358652168,1745338241591,-500.0,0.00023488,2]
[358652169,1745338241601,-150.336,0.00023502,2]
[358652170,1745338241611,-150.0,0.00023502,2]
[358652171,1745338241621,-706.0,0.00023502,2]
[358652172,1745338241630,-544.0,0.00023502,2]
[358652173,1745338241640,-500.0,0.00023561,2]
[358652174,1745338241651,-500.0,0.00023561,2]
[358652175,1745338241660,-500.0,0.00023561,2]
[358652176,1745338241670,-500.0,0.00023561,2]
[358652177,1745338241680,-500.0,0.00023561,2]
[358652178,1745338241690,-500.0,0.00023561,2]
[358652179,1745338241700,-500.0,0.00023561,2]
[358652180,1745338241709,-500.0,0.00023561,2]
[358652181,1745338241719,-266.0,0.00023561,2]
[358652182,1745338241731,-500.0,0.00023561,2]
[358652183,1745338241741,-156.40955306,0.00023561,2]
[358652184,1745338241750,-500.0,0.00023561,2]
[358652185,1745338241760,-500.0,0.00023561,2]
[358652186,1745338241770,-363.41026424,0.00023561,2]
[358652187,1745338241780,-500.0,0.00023561,2]
[358652188,1745338241789,-500.0,0.00023561,2]
[358652189,1745338241799,-500.0,0.00023561,2]
[358652190,1745338241810,-649.53,0.00023561,2]
[358652191,1745338241821,-208.39445908,0.00023561,2]
[358652192,1745338241830,-1669.86,0.00023561,2]
[358652193,1745338241840,-318.26047517,0.00023561,2]
[358652194,1745338241850,-4082.69,0.00023561,2]
[358652195,1745338241859,-500.0,0.00023561,2]
[358652196,1745338241868,-1206.18,0.00023561,2]
[358652197,1745338241878,-500.0,0.00023561,2]
[358652198,1745338241888,-914.84,0.00023561,2]
[358652199,1745338241897,-500.0,0.00023561,2]
[358652200,1745338242035,-2204.13,0.00023561,2]
[358652201,1745338242048,-587.68,0.00023561,2]
[358652202,1745338242058,-795.22,0.00023561,2]
[358652203,1745338242068,-500.0,0.00023561,2]
[358652204,1745338242079,-500.0,0.00023561,2]
[358652205,1745338242088,-500.0,0.00023561,2]
[358652206,1745338242098,-1584.84,0.00023561,2]
[358652207,1745338242108,-500.0,0.00023561,2]
[358652208,1745338242117,-1090.99,0.00023561,2]
[358652209,1745338242128,-500.0,0.00023583,2]
[358652210,1745338242137,-600.0,0.00023716,2]
[358652211,1745338242147,-500.0,0.00023776,2]
[358652212,1745338242157,-500.0,0.00023776,2]
[358652213,1745338242166,-500.0,0.00023776,2]
[358652214,1745338242176,-501.13328607,0.00023776,2]
[358652215,1745338242186,-500.0,0.00023776,2]
[358652216,1745338242195,-548.70368773,0.00023776,2]
[358652217,1745338242205,-151.61362955,0.00023776,2]
[358652218,1745338242215,-270.28272761,0.00023776,2]
[358652219,1745338242224,-500.0,0.00023776,2]
[358652220,1745338242234,-500.0,0.00023776,2]
[358652221,1745338242244,-502.46708272,0.00023776,2]
[358652222,1745338242254,-500.0,0.00023776,2]
[358652223,1745338242264,-504.84070113,0.00023776,2]
[358652224,1745338242273,-500.0,0.00023776,2]
[358652225,1745338242284,-500.0,0.00023776,2]
[358652226,1745338242294,-500.0,0.00023776,2]
[358652227,1745338242304,-500.0,0.00023776,2]
[358652228,1745338242313,-500.0,0.00023776,2]
[358652229,1745338242323,-500.0,0.00023776,2]
[358652230,1745338242334,-630.82533948,0.00023776,2]
[358652231,1745338242344,-426.23705528,0.00023835,2]
[358652232,1745338242354,-400.47140001,0.00023835,2]
[358652233,1745338242363,-500.0,0.00023835,2]
[358652234,1745338242374,-500.0,0.00023835,2]
[358652235,1745338242384,-500.0,0.00023835,2]
[358652236,1745338242394,-500.0,0.00023835,2]
[358652237,1745338242404,-649.53,0.00023835,2]
[358652238,1745338242415,-1669.86,0.00023835,2]
[358652239,1745338242425,-4082.69,0.00023835,2]
[358652240,1745338242435,-500.0,0.00023835,2]
[358652241,1745338242445,-1206.18,0.00023835,2]
[358652242,1745338242455,-500.0,0.00023835,2]
[358652243,1745338242465,-914.84,0.00023835,2]
[358652244,1745338242475,-2204.13,0.00023835,2]
[358652245,1745338242485,-587.68,0.00023835,2]
[358652246,1745338242495,-795.22,0.00023835,2]
[358652247,1745338242505,-500.0,0.00023835,2]
[358652248,1745338242515,-317.11108901,0.00023835,2]
[358652249,1745338242525,-500.0,0.00023835,2]
[358652250,1745338242536,-1584.84,0.00023835,2]
[358652251,1745338242547,-1090.99,0.00023835,2]
[358652252,1745338242557,-394.661,0.000239,5]
[358652253,1745338242567,-295.79295339,0.000239,2]
[358652254,1745338242577,-600.0,0.00023904,2]
[358652255,1745338242587,-1561.87183303,0.00024,2]
[358652256,1745338242596,-500.0,0.00024109,2]
[358652257,1745338242606,-500.0,0.00024109,2]
[358652258,1745338242616,-500.0,0.00024109,2]
[358652259,1745338242627,-500.0,0.00024109,2]
[358652260,1745338242638,-649.53,0.00024109,2]
[358652261,1745338242647,-1669.86,0.00024109,2]
[358652262,1745338242657,-4082.69,0.00024109,2]
[358652263,1745338242667,-264.75558691,0.00024109,2]
[358652264,1745338242677,-1206.18,0.00024109,2]
[358652265,1745338242687,-190.07227324,0.00024109,2]
[358652266,1745338242697,-914.84,0.00024109,2]
[358652267,1745338242707,-2204.13,0.00024109,2]
[358652268,1745338242716,-587.68,0.00024109,2]
[358652269,1745338242728,-795.22,0.00024109,2]
[358652270,1745338242739,-520.79,0.00024109,2]
[358652271,1745338242749,-520.79,0.00024109,2]
[358652272,1745338242759,-520.79,0.00024109,2]
[358652273,1745338242770,-520.79,0.00024109,2]
[358652274,1745338242780,-520.79,0.00024109,2]
[358652275,1745338242791,-520.79,0.00024109,2]
[358652276,1745338242800,-520.79,0.00024109,2]
[358652277,1745338242812,-520.79,0.00024109,2]
[358652278,1745338242822,-520.79,0.00024109,2]
[358652279,1745338242832,-500.0,0.00024109,2]
[358652280,1745338242842,-532.30848343,0.00024109,2]
[358652281,1745338242853,-1584.84,0.00024109,2]
[358652282,1745338242863,-1090.99,0.00024109,2]
[358652283,1745338242874,-2348.987,0.00024152,2]
[358652284,1745338242884,-778.11,0.00024152,2]
[358652285,1745338242896,-151.0,0.000242,8]
[358652286,1745338242906,-500.0,0.00024383,2]
[358652287,1745338242917,-157.53662236,0.00024383,2]
[358652288,1745338242927,-500.0,0.00024383,2]
[358652289,1745338242936,-500.0,0.00024383,2]
[358652290,1745338242946,-500.0,0.00024383,2]
[358652291,1745338242956,-500.0,0.00024383,2]
[358652292,1745338242965,-500.0,0.00024383,2]